fUSD/lending_fUSD_20241019
["ID","MTS","AMOUNT","RATE_DAILY","PERIOD"]
[340486973,1729312244461,-316.26299,0.00022284,7]
[340486974,1729312244471,-151.0,0.00022284,7]
[340486975,1729312244480,-239.84477026,0.00022284,2]
[340486976,1729312244489,-200.0,0.00022284,2]
[340486977,1729312244498,-246.711116,0.00022284,7]
[340486978,1729312244507,-246.711116,0.00022284,7]
[340486979,1729312244517,-455.11556,0.00022284,7]
[340486980,1729312244526,-151.0,0.00022284,7]
[340486981,1729312244535,-455.11556,0.00022284,7]
[340486982,1729312244544,-151.0,0.00022284,7]
[340486983,1729312244554,-152.836354,0.00022284,7]
[340486984,1729312244563,-188.641057,0.00022284,7]
[340486985,1729312244572,-151.0,0.00022284,7]
[340486986,1729312244583,-151.0,0.00022284,7]
[340486987,1729312244592,-151.0,0.00022284,7]
[340486988,1729312244605,-163.223012,0.00022284,7]
[340486989,1729312244615,-163.223012,0.00022284,7]
[340486990,1729312244625,-153.131706,0.00022284,7]
[340486991,1729312244635,-164.828927,0.00022313,2]
[340486992,1729312244646,-151.0,0.00022313,7]
[340486993,1729312244656,-152.025172,0.00022313,7]
[340486994,1729312244665,-151.0,0.00022356,7]
[340486995,1729312244677,-151.0,0.00022356,7]
[340486996,1729312244687,-173.61218,0.00022356,7]
[340486997,1729312244696,-173.61218,0.00022356,7]
[340486998,1729312244706,-151.0,0.00022356,7]
[340486999,1729312244715,-151.0,0.00022356,7]
[340487000,1729312244725,-151.0,0.00022356,7]
[340487001,1729312244735,-160.76176,0.00022356,7]
[340487002,1729312244745,-160.76176,0.00022356,7]
[340487003,1729312244754,-228.121989,0.00022356,7]
[340487004,1729312244764,-228.121989,0.00022356,7]
[340487005,1729312244774,-254.268455,0.00022356,7]
[340487006,1729312244785,-152.039362,0.00022356,7]
[340487007,1729312244794,-254.268455,0.00022356,7]
[340487008,1729312244803,-301.13,0.00022356,2]
[340487009,1729312244813,-300.98,0.00022356,2]
[340487010,1729312244823,-1645.23797538,0.00022402,2]
[340487011,1729312244833,-158.23,0.00022416,2]
[340487012,1729312244843,-2000.0,0.00022506,2]
[340487013,1729312244852,-200.0,0.00022506,2]
[340487014,1729312244861,-153.054248,0.00022506,7]
[340487015,1729312244871,-151.0,0.00022506,7]
[340487016,1729312244880,-158.872432,0.00022506,7]
[340487017,1729312244890,-546.548172,0.00022506,7]
[340487018,1729312244900,-546.548172,0.00022506,7]
[340487019,1729312244909,-200.0,0.00022506,2]
[340487020,1729312244919,-2000.0,0.00022732,2]
[340487021,1729312244929,-200.0,0.00022732,2]
[340487022,1729312244938,-200.0,0.00022732,2]
[340487023,1729312244948,-1645.23797538,0.00022759,2]
[340487024,1729312244957,-495.44,0.00022832,2]
[340487025,1729312244966,-318.97,0.00022835,2]
[340487026,1729312244975,-162.28453829,0.00022857,2]
[340487027,1729312244985,-166.54153586,0.00022878,2]
[340487028,1729312244995,-150.0,0.000229,2]
[340487029,1729312245005,-155.1,0.00022946,2]
[340487030,1729312245014,-186.44,0.00022946,2]
[340487031,1729312245024,-186.44,0.00022946,2]
[340487032,1729312245033,-186.44,0.00022946,2]
[340487033,1729312245043,-186.44,0.00022946,2]
[340487034,1729312245052,-500.0,0.00022955,2]
[340487035,1729312245061,-340.22453151,0.00022955,2]
[340487036,1729312245070,-254.268455,0.00022956,7]
[340487037,1729312245081,-254.268455,0.00022956,7]
[340487038,1729312245091,-510.0,0.00022956,2]
[340487039,1729312245101,-946055.7916172,0.00022956,12]
[340487040,1729312245111,-270093.011863,0.00022957,5]
[340487041,1729312245121,-31856.5827312,0.00022957,5]
[340487042,1729312245131,-254.268455,0.00022957,7]
[340487043,1729312245140,-254.268455,0.00022957,7]
[340487044,1729312245149,-2000.0,0.00022959,2]
[340487045,1729312245159,-200.0,0.00022959,2]
[340487046,1729312245168,-200.0,0.00022959,2]
[340487047,1729312245178,-227.166135,0.00022959,7]
[340487048,1729312245188,-346.638531,0.00022959,7]
[340487049,1729312245197,-151.0,0.00022959,7]
[340487050,1729312245206,-346.638531,0.00022959,7]
[340487051,1729312245216,-151.0,0.00022959,7]
[340487052,1729312245226,-151.0,0.00022959,7]
[340487053,1729312245236,-254.268455,0.00022959,7]
[340487054,1729312245246,-254.268455,0.00022959,7]
[340487055,1729312245255,-346.638531,0.00022967,7]
[340487056,1729312245264,-346.638531,0.00022967,7]
[340487057,1729312245274,-151.0,0.00022967,7]
[340487058,1729312245283,-151.0,0.00022967,7]
[340487059,1729312245293,-346.638531,0.00022967,7]
[340487060,1729312245302,-346.638531,0.00022967,7]
[340487061,1729312245449,-151.0,0.00022967,7]
[340487062,1729312245460,-151.0,0.00022967,7]
[340487063,1729312245470,-151.0,0.00022967,7]
[340487064,1729312245480,-151.0,0.00022967,7]
[340487065,1729312245490,-151.0,0.00022967,7]
[340487066,1729312245500,-151.0,0.00022967,7]
[340487067,1729312245509,-151.0,0.00022967,7]
[340487068,1729312245519,-151.0,0.00022967,7]
[340487069,1729312245528,-151.0,0.00022967,7]
[340487070,1729312245538,-151.0,0.00022967,7]
[340487071,1729312245547,-151.0,0.00022967,7]
[340487072,1729312245556,-151.0,0.00022967,7]
[340487073,1729312245565,-182.567813,0.00022967,7]
[340487074,1729312245574,-163.223012,0.00022967,7]
[340487075,1729312245584,-163.223012,0.00022967,7]
[340487076,1729312245596,-163.223012,0.00022967,7]
[340487077,1729312245606,-163.223012,0.00022967,7]
[340487078,1729312245616,-163.223012,0.00022967,7]
[340487079,1729312245625,-163.223012,0.00022967,7]
[340487080,1729312245635,-151.0,0.00022967,7]
[340487081,1729312245645,-151.0,0.00022967,7]
[340487082,1729312245654,-151.0,0.00022967,7]
[340487083,1729312245663,-151.0,0.00022967,7]
[340487084,1729312245675,-151.0,0.00022967,7]
[340487085,1729312245685,-152.344854,0.00022967,7]
[340487086,1729312245694,-171.04536,0.00022967,7]
[340487087,1729312245703,-173.61218,0.00022967,7]
[340487088,1729312245711,-173.61218,0.00022967,7]
[340487089,1729312245721,-173.61218,0.00022967,7]
[340487091,1729312245730,-173.61218,0.00022967,7]
[340487093,1729312245738,-173.61218,0.00022967,7]
[340487095,1729312245748,-173.61218,0.00022967,7]
[340487096,1729312245756,-151.0,0.00022967,7]
[340487097,1729312245765,-151.0,0.00022967,7]
[340487098,1729312245774,-151.0,0.00022967,7]
[340487099,1729312245783,-151.0,0.00022967,7]
[340487100,1729312245792,-151.0,0.00022967,7]
[340487101,1729312245801,-151.0,0.00022967,7]
[340487102,1729312245810,-151.0,0.00022967,7]
[340487103,1729312245819,-151.0,0.00022967,7]
[340487104,1729312245828,-151.0,0.00022967,7]
[340487105,1729312245837,-160.76176,0.00022967,7]
[340487106,1729312245846,-160.76176,0.00022967,7]
[340487107,1729312245855,-160.76176,0.00022967,7]
[340487108,1729312245864,-160.76176,0.00022967,7]
[340487109,1729312245873,-160.76176,0.00022967,7]
[340487110,1729312245882,-160.76176,0.00022967,7]
[340487111,1729312245891,-228.121989,0.00022967,7]
[340487112,1729312245900,-228.121989,0.00022967,7]
[340487113,1729312245909,-228.121989,0.00022967,7]
[340487114,1729312245918,-228.121989,0.00022967,7]
[340487115,1729312245926,-228.121989,0.00022967,7]
[340487116,1729312245936,-228.121989,0.00022967,7]
[340487117,1729312245946,-151.0,0.00022968,7]
[340487118,1729312245954,-151.0,0.00022968,7]
[340487119,1729312245964,-48318.17650606,0.00022978,5]
[340487120,1729312245973,-151.0,0.00022978,7]
[340487121,1729312245982,-155.017178,0.00022978,7]
[340487122,1729312245991,-151.0,0.00022978,7]
[340487123,1729312246000,-153.011427,0.00022978,7]
[340487124,1729312246009,-151.0,0.00022978,7]
[340487125,1729312246018,-151.0,0.00022978,7]
[340487126,1729312246027,-158.872432,0.00022978,7]
[340487127,1729312246036,-158.872432,0.00022978,7]
[340487128,1729312246044,-546.548172,0.00022978,7]
[340487129,1729312246053,-546.548172,0.00022978,7]
[340487130,1729312246062,-316.26299,0.00022978,7]
[340487131,1729312246072,-151.0,0.00022978,7]
[340487132,1729312246082,-316.26299,0.00022978,7]
[340487133,1729312246090,-151.0,0.00022978,7]
[340487134,1729312246099,-156.970254,0.00022978,7]
[340487135,1729312246108,-151.0,0.00022978,7]
[340487136,1729312246116,-151.0,0.00022978,7]
[340487137,1729312246126,-159.533536,0.00022978,7]
[340487138,1729312246135,-246.711116,0.00022978,7]
[340487139,1729312246144,-246.711116,0.00022978,7]
[340487140,1729312246153,-246.711116,0.00022978,7]
[340487141,1729312246162,-246.711116,0.00022978,7]
[340487142,1729312246171,-455.11556,0.00022978,7]
[340487143,1729312246180,-455.11556,0.00022978,7]
[340487144,1729312246189,-151.0,0.00022978,7]
[340487145,1729312246198,-151.0,0.00022978,7]
[340487146,1729312246207,-455.11556,0.00022978,7]
[340487147,1729312246216,-455.11556,0.00022978,7]
[340487148,1729312246225,-151.0,0.00022978,7]
[340487149,1729312246235,-151.0,0.00022978,7]
[340487150,1729312246245,-188.641057,0.00022978,7]
[340487151,1729312246254,-188.641057,0.00022978,7]
[340487152,1729312246264,-346.638531,0.00022978,7]
[340487153,1729312246273,-346.638531,0.00022978,7]
[340487154,1729312246283,-154.64649,0.00022978,7]
[340487155,1729312246293,-346.638531,0.00022978,7]
[340487156,1729312246302,-346.638531,0.00022978,7]
[340487157,1729312246312,-151.0,0.00022978,7]
[340487158,1729312246322,-151.0,0.00022978,7]
[340487159,1729312246332,-151.0,0.00022978,7]
[340487160,1729312246341,-216.552652,0.00022978,7]
[340487161,1729312246351,-151.0,0.00022978,7]
[340487162,1729312246360,-151.0,0.00022978,7]
[340487163,1729312246370,-163.223012,0.00022978,7]
[340487164,1729312246379,-163.223012,0.00022978,7]
[340487165,1729312246388,-151.0,0.00022978,7]
[340487166,1729312246398,-173.61218,0.00022978,7]
[340487167,1729312246408,-173.61218,0.00022978,7]
[340487168,1729312246417,-151.0,0.00022978,7]
[340487169,1729312246427,-170.685455,0.00022978,7]
[340487170,1729312246438,-217.690792,0.00022978,7]
[340487171,1729312246448,-160.76176,0.00022978,7]
[340487172,1729312246458,-160.76176,0.00022978,7]
[340487173,1729312246467,-228.121989,0.00022978,7]
[340487174,1729312246477,-228.121989,0.00022978,7]
[340487175,1729312246488,-254.268455,0.00022978,7]
[340487176,1729312246497,-254.268455,0.00022978,7]
[340487177,1729312246507,-183.720037,0.00022986,7]
[340487178,1729312246517,-1645.23797538,0.00023116,2]
[340487179,1729312246527,-202.0,0.0002323,2]
[340487180,1729312246537,-162.28453828,0.00023368,2]
[340487181,1729312246548,-164.828927,0.00023428,2]
[340487182,1729312246558,-800.0,0.00023434,2]
[340487183,1729312246569,-167.29,0.00023445,2]
[340487184,1729312246580,-328.948154,0.00023446,7]
[340487185,1729312246591,-153.016155,0.00023446,7]
[340487186,1729312246604,-200.84830327,0.00023446,2]
[340487187,1729312246616,-500.0,0.00023446,2]
[340487188,1729312246626,-500.0,0.00023446,2]
[340487189,1729312246637,-500.0,0.00023446,2]
[340487190,1729312246647,-1645.23797538,0.00023472,2]
[340487191,1729312246656,-151.0,0.00023482,7]
[340487192,1729312246666,-151.0,0.00023482,7]
[340487193,1729312246678,-248.17207,0.00023552,7]
[340487194,1729312246688,-158.872432,0.00023552,7]
[340487195,1729312246699,-158.872432,0.00023552,7]
[340487196,1729312246710,-546.548172,0.00023552,7]
[340487197,1729312246720,-546.548172,0.00023552,7]
[340487198,1729312246731,-157.46,0.00023562,2]
[340487199,1729312246741,-318.97,0.00023642,2]
[340487200,1729312246751,-316.26299,0.00023777,7]
[340487201,1729312246762,-262.518032,0.00023777,7]
[340487202,1729312246772,-316.26299,0.00023777,7]
[340487203,1729312246782,-151.0,0.00023777,7]
[340487204,1729312246792,-151.0,0.00023777,7]
[340487205,1729312246801,-151.0,0.00023777,7]
[340487206,1729312246812,-246.711116,0.00023777,7]
[340487207,1729312246822,-246.711116,0.00023777,7]
[340487208,1729312246832,-455.11556,0.00023777,7]
[340487209,1729312246841,-151.0,0.00023777,7]
[340487210,1729312246851,-455.11556,0.00023777,7]
[340487211,1729312246862,-151.0,0.00023777,7]
[340487212,1729312246872,-188.641057,0.00023777,7]
[340487213,1729312246882,-1645.23797538,0.00023829,2]
[340487214,1729312246891,-162.28453828,0.00023879,2]
[340487215,1729312246901,-151.0,0.000239,7]
[340487216,1729312246915,-151.0,0.000239,7]
[340487217,1729312246924,-200.0,0.000239,2]
[340487218,1729312246934,-346.638531,0.000239,7]
[340487219,1729312246943,-346.638531,0.000239,7]
[340487220,1729312246953,-151.0,0.000239,7]
[340487221,1729312246962,-151.0,0.000239,7]
[340487222,1729312246971,-151.0,0.000239,7]
[340487223,1729312246982,-163.223012,0.000239,7]
[340487224,1729312246991,-163.223012,0.000239,7]
[340487225,1729312247001,-151.0,0.000239,7]
[340487226,1729312247010,-196.44734743,0.000239,2]
[340487227,1729312247021,-254.268455,0.000239,7]
[340487228,1729312247033,-3111.28074508,0.000239,2]
[340487229,1729312247043,-368.39,0.00023918,2]
[340487230,1729312247053,-316.26299,0.00023959,7]
[340487231,1729312247065,-316.26299,0.00023959,7]
[340487232,1729312247075,-173.370099,0.00023959,7]
[340487233,1729312247085,-163.518861,0.00023959,7]
[340487234,1729312247094,-151.0,0.00023959,7]
[340487235,1729312247104,-246.711116,0.00023959,7]
[340487236,1729312247113,-246.711116,0.00023959,7]
[340487237,1729312247123,-455.11556,0.00023959,7]
[340487238,1729312247133,-151.0,0.00023959,7]
[340487239,1729312247143,-455.11556,0.00023959,7]
[340487240,1729312247153,-151.0,0.00023959,7]
[340487241,1729312247162,-188.641057,0.00023959,7]
[340487242,1729312247172,-173.61218,0.00023959,7]
[340487243,1729312247181,-173.61218,0.00023959,7]
[340487244,1729312247190,-151.0,0.00023959,7]
[340487245,1729312247199,-160.76176,0.00023959,7]
[340487246,1729312247209,-160.76176,0.00023959,7]
[340487247,1729312247218,-228.121989,0.00023959,7]
[340487248,1729312247227,-228.121989,0.00023959,7]
[340487249,1729312247237,-316.26299,0.00023969,7]
[340487250,1729312247246,-316.26299,0.00023969,7]
[340487251,1729312247256,-151.0,0.00023969,7]
[340487252,1729312247265,-151.0,0.0002397,7]
[340487253,1729312247275,-151.0,0.0002397,7]
[340487254,1729312247285,-151.0,0.0002397,7]
[340487255,1729312247294,-151.0,0.0002397,7]
[340487256,1729312247304,-151.0,0.0002397,7]
[340487257,1729312247314,-151.0,0.0002397,7]
[340487258,1729312247323,-151.0,0.0002397,7]
[340487259,1729312247333,-151.0,0.0002397,7]
[340487260,1729312247343,-151.0,0.0002397,7]
[340487261,1729312247352,-238.442392,0.0002397,7]
[340487262,1729312247362,-158.872432,0.0002397,7]
[340487263,1729312247371,-158.872432,0.0002397,7]
[340487264,1729312247381,-158.872432,0.0002397,7]
[340487265,1729312247390,-158.872432,0.0002397,7]
[340487266,1729312247399,-158.872432,0.0002397,7]
[340487267,1729312247409,-158.872432,0.0002397,7]
[340487268,1729312247418,-546.548172,0.0002397,7]
[340487269,1729312247429,-546.548172,0.0002397,7]
[340487270,1729312247438,-546.548172,0.0002397,7]
[340487271,1729312247448,-546.548172,0.0002397,7]
[340487272,1729312247457,-546.548172,0.0002397,7]
[340487273,1729312247466,-546.548172,0.0002397,7]
[340487274,1729312247475,-375.0,0.00023979,2]
[340487275,1729312247485,-151.0,0.0002398,7]
[340487276,1729312247494,-151.0,0.0002398,7]
[340487277,1729312247504,-482278.09791716,0.00024,5]
[340487278,1729312247820,-150.0,0.00021342,2]
[340487279,1729312247831,-151.13,0.0002337,2]
[340487280,1729312247845,-58.95234564,0.000239,7]
[340487281,1729312247856,-195.31610936,0.000239,7]
[340487282,1729312247866,-1237.07471857,0.00024,5]
[340487283,1729312247877,-928.66277367,0.00024,5]
[340487284,1729312247889,-1529.47956354,0.00024,5]
[340487285,1729312247953,-151.0,0.00022062,7]
[340487286,1729312247963,-681.13,0.00024,5]
[340487287,1729312247975,-392.18531531,0.00024,5]
[340487288,1729312247994,-797.50039743,0.00024,5]
[340487289,1729312248427,528.47404,0.00027,60]
[340487290,1729312259495,528.47404,0.00027,60]
[340487291,1729312273707,160.7,0.00010959,2]
[340487292,1729312276872,528.47404,0.00027,60]
[340487293,1729312389530,500.0,0.00027,120]
[340487294,1729312393092,543.626074,0.00027,120]
[340487295,1729312395781,500.0,0.00027,120]
[340487296,1729312399589,200.0,0.00027,120]
[340487297,1729312767098,156.85,0.00010959,2]
[340487299,1729312945065,976.31,0.00027,60]
[340487300,1729312989313,500.0,0.00027,120]
[340487301,1729312994484,500.0,0.00027,120]
[340487302,1729312998471,200.0,0.00027,120]
[340487303,1729313229127,-334.50399905,0.0001495,2]
[340487304,1729313247134,-115.49600095,0.0001495,2]
[340487305,1729313247155,-190.374,0.0001495,2]
[340487306,1729313247178,-150.682,0.0001495,2]
[340487307,1729313247198,-151.63404891,0.0001726,2]
[340487308,1729313247218,-216.06895971,0.0001963,2]
[340487309,1729313247238,-300.0,0.00019725,2]
[340487310,1729313247259,-356.35715253,0.0001973,2]
[340487323,1729313431550,-296.0248,0.0001485,2]
[340487324,1729313431560,-150.0,0.0001495,2]
[340487325,1729313431569,-91.58284747,0.0001973,2]
[340487326,1729313431578,-360.0,0.000205,2]
[340487327,1729313431588,-1000.0,0.000205,2]
[340487328,1729313431598,-227.0,0.000205,2]
[340487330,1729313431608,-150.99,0.00021192,2]
[340487331,1729313431617,-971.0,0.000212,2]
[340487332,1729313431782,-499.99,0.00021205,2]
[340487333,1729313431792,-150.0,0.00021205,2]
[340487334,1729313431801,-284.442,0.00021242,2]
[340487335,1729313431811,-150.0,0.00021399,2]
[340487336,1729313431820,-200.0,0.00021687,2]
[340487337,1729313431829,-170.3,0.00021814,2]
[340487338,1729313431839,-269.63,0.00021839,2]
[340487339,1729313431848,-150.0,0.000219,2]
[340487340,1729313431858,-865.1201,0.00021914,2]
[340487341,1729313431867,-250.0,0.00021948,2]
[340487342,1729313431876,-174.5,0.00021963,2]
[340487343,1729313431886,-447.94,0.00021994,2]
[340487344,1729313431896,-282.73844552,0.00022012,2]
[340487345,1729313431907,-1.28155448,0.00022012,2]
[340487346,1729313431917,-158.85,0.00022137,30]
[340487347,1729313431926,-170.36,0.00022181,2]
[340487348,1729313431935,-441.11300618,0.00022201,2]
[340487352,1729313431959,-11519.0,0.000222,3]
[340487353,1729313431968,-2309.88699382,0.00022201,2]
[340487355,1729313431978,-250.0,0.00022208,2]
[340487357,1729313431987,-952.66636848,0.00022225,2]
[340487360,1729313431998,-47.33363152,0.00022225,2]
[340487362,1729313432007,-250.0,0.00022233,2]
[340487364,1729313432017,-6279.57036817,0.00022242,2]
[340487366,1729313432033,-595.06972421,0.00022242,2]
[340487368,1729313432048,-2636.2,0.00022242,2]
[340487369,1729313432059,-4996.966294,0.00022242,2]
[340487371,1729313437899,-357.95902549,0.000216,2]
[340487373,1729313439695,-10217.13628254,0.000216,2]
[340487374,1729313439711,-263.7740842,0.000216,2]
[340487375,1729313439721,-616.775001,0.000216,2]
[340487376,1729313439733,-370.52707727,0.000216,2]
[340487393,1729313442629,-1123.98748595,0.000216,2]
[340487395,1729313442640,-835.15104681,0.000216,2]
[340487400,1729313442895,-643.71140223,0.000216,2]
[340487401,1729313442907,-7040.65125959,0.000216,2]
[340487402,1729313442949,-754.32475265,0.000216,2]
[340487403,1729313442960,-293.75433028,0.000216,2]
[340487415,1729313445608,-4417.52516995,0.000216,2]
[340487416,1729313445663,-10401.00682633,0.000216,2]
[340487417,1729313445675,-511.32173005,0.000216,2]
[340487418,1729313445688,-371.13706463,0.000216,2]
[340487419,1729313445719,-2710.87194098,0.000216,2]
[340487420,1729313445730,-13505.9,0.000216,2]
[340487421,1729313445775,-342.058342,0.000216,2]
[340487422,1729313445786,-1417.56443875,0.000216,2]
[340487423,1729313445831,-17614.77864084,0.000216,2]
[340487424,1729313445843,-1546.58900404,0.000216,2]
[340487425,1729313445854,-2026.77504163,0.000216,2]
[340487426,1729313445865,-267.59724434,0.000216,2]
[340487427,1729313445876,-581.02513369,0.000216,2]
[340487428,1729313445891,-4420.09767476,0.000216,2]
[340487429,1729313445900,-627.57361362,0.00022242,2]
[340487430,1729313445909,-178.341825,0.00022314,2]
[340487431,1729313445918,-178.341825,0.00022314,2]
[340487432,1729313445927,-151.44,0.00022548,2]
[340487433,1729313445936,-150.0,0.00022548,2]
[340487434,1729313445945,-180.28,0.00022746,2]
[340487435,1729313445954,-2050.7108,0.000228,2]
[340487436,1729313445963,-11519.0,0.000228,5]
[340487437,1729313445972,-375.0,0.00022956,2]
[340487438,1729313445981,-2249.0002,0.00023,2]
[340487439,1729313445990,-166.57,0.00023091,2]
[340487440,1729313445999,-1499.99,0.00023096,2]
[340487441,1729313446008,-2747.6467,0.00023534,10]
[340487442,1729313446017,-160.7,0.00023562,2]
[340487443,1729313446026,-150.0,0.00023729,2]
[340487444,1729313446035,-3.87734124,0.00023729,2]
[340487445,1729313446050,-146.12265876,0.00023729,2]
[340487447,1729313446060,-150.0,0.00023738,2]
[340487449,1729313446072,-150.0,0.00023751,2]
[340487450,1729313446085,-150.0,0.00023755,2]
[340487451,1729313446097,-150.0,0.00023759,2]
[340487452,1729313446109,-137.9826759,0.00023765,2]
[340487453,1729313446124,-12.0173241,0.00023765,2]
[340487454,1729313446135,-150.0,0.0002378,2]
[340487455,1729313446144,-150.0,0.00023784,2]
[340487456,1729313446154,-150.0,0.00023793,2]
[340487457,1729313446166,-150.0,0.00023798,2]
[340487458,1729313446179,-150.0,0.00023821,2]
[340487459,1729313446189,-150.0,0.00023826,2]
[340487460,1729313446200,-150.0,0.00023826,2]
[340487461,1729313446211,-150.0,0.0002383,2]
[340487462,1729313446222,-150.0,0.00023837,2]
[340487463,1729313446233,-150.0,0.00023845,2]
[340487464,1729313446246,-150.0,0.00023845,2]
[340487465,1729313446257,-150.0,0.00023853,2]
[340487466,1729313446268,-150.0,0.00023863,2]
[340487467,1729313446281,-150.0,0.00023868,2]
[340487468,1729313446293,-150.0,0.0002387,2]
[340487469,1729313446308,-150.0,0.00023871,2]
[340487470,1729313446321,-150.0,0.00023872,2]
[340487471,1729313446333,-150.0,0.00023882,2]
[340487472,1729313446346,-493.57139265,0.0002389,2]
[340487473,1729313446359,-150.0,0.00023891,2]
[340487474,1729313446371,-150.0,0.00023891,2]
[340487475,1729313446382,-150.0,0.00023893,2]
[340487476,1729313446395,-150.0,0.00023893,2]
[340487477,1729313446408,-150.0,0.00023896,2]
[340487478,1729313446421,-20.22035946,0.00023897,2]
[340487479,1729313446437,-129.77964054,0.00023897,2]
[340487480,1729313446450,-150.0,0.00023898,2]
[340487481,1729313446461,-150.0,0.000239,2]
[340487482,1729313446472,-150.0,0.00023902,2]
[340487483,1729313446482,-150.0,0.00023904,2]
[340487484,1729313446492,-150.0,0.00023915,2]
[340487485,1729313446503,-150.0,0.00023918,2]
[340487486,1729313446516,-150.0,0.00023925,2]
[340487487,1729313446527,-89.7401975,0.00023925,2]
[340487488,1729313446542,-60.2598025,0.00023925,2]
[340487489,1729313446553,-150.0,0.00023927,2]
[340487490,1729313446564,-150.0,0.00023936,2]
[340487491,1729313446576,-150.0,0.00023955,2]
[340487492,1729313446588,-150.0,0.00023969,2]
[340487493,1729313446601,-150.0,0.00023971,2]
[340487494,1729313446614,-150.0,0.00023976,2]
[340487495,1729313446626,-150.0,0.00023979,2]
[340487496,1729313446637,-1751.65367505,0.0002398,5]
[340487497,1729313446657,-1224.9376738,0.0002398,5]
[340487498,1729313446672,-1189.02918722,0.0002398,5]
[340487499,1729313446684,-2735.70533876,0.0002398,5]
[340487500,1729313452794,180.0,0.0002546,120]
[340487501,1729313589631,478.88404,0.00027,120]
[340487502,1729313595285,500.0,0.00027,120]
[340487503,1729313598382,200.0,0.00027,120]
[340487505,1729313794926,550.0,0.0001,2]
[340487506,1729313887249,158.23,0.00010959,2]
[340487507,1729314196292,500.0,0.00027,120]
[340487508,1729314199510,200.0,0.00027,120]
[340487509,1729314428140,-600.0,0.00012,2]
[340487510,1729314428161,-15.5550707,0.00020793,2]
[340487511,1729314428834,160.97,0.00010959,2]
[340487525,1729314631754,-150.0,0.0001593,2]
[340487527,1729314631763,-399.6649293,0.00020793,2]
[340487529,1729314631772,-933.9,0.0002253,2]
[340487531,1729314631782,-606.48,0.0002253,2]
[340487533,1729314631791,-250.0,0.00022635,2]
[340487535,1729314631800,-250.0,0.00022642,2]
[340487537,1729314631809,-8504.61,0.0002265,2]
[340487539,1729314631819,-499.99,0.0002265,2]
[340487541,1729314631828,-250.0,0.00022654,2]
[340487543,1729314631837,-289.47,0.00022668,2]
[340487545,1729314631847,-166.57,0.00022704,2]
[340487547,1729314631855,-152.74,0.00022716,2]
[340487549,1729314631864,-1000.0,0.00022756,2]
[340487551,1729314631873,-150.9,0.0002289,30]
[340487553,1729314631882,-174.5,0.00022992,2]
[340487555,1729314631893,-415.22,0.00023057,2]
[340487557,1729314631902,-823.86,0.00023096,2]
[340487559,1729314631911,-227.553,0.00023173,3]
[340487560,1729314631920,-167.29,0.00023379,2]
[340487561,1729314631929,-150.0,0.00023733,2]
[340487562,1729314631938,-150.0,0.00023748,2]
[340487563,1729314631947,-150.0,0.00023773,2]
[340487564,1729314631956,-150.0,0.00023774,2]
[340487565,1729314631966,-150.0,0.00023774,2]
[340487566,1729314631975,-150.0,0.00023822,2]
[340487567,1729314631984,-150.0,0.00023837,2]